bitfinex-derivatives/quotes_BTCF0:USTF0_20251209
["timestamp","ask_amount","ask_price","bid_price","bid_amount"]
[1765292239148,0.0190671,90359.0,90357.0,0.001]
[1765292239750,0.004,90356.0,90348.0,0.3608]
[1765292239943,0.0110682,90351.0,90348.0,0.3608]
[1765292240146,0.3608,90355.0,90348.0,0.3608]
[1765292240447,0.0110682,90351.0,90338.0,0.0110697]
[1765292240754,0.3608,90347.0,90336.0,0.00016604]
[1765292241047,0.3608,90347.0,90338.0,0.0110696]
[1765292241238,0.3608,90347.0,90336.0,0.00016604]
[1765292241439,0.0110689,90345.0,90336.0,0.00016604]
[1765292241750,0.0110687,90346.0,90336.0,0.01123594]
[1765292241951,0.0110687,90346.0,90336.0,0.00016604]
[1765292242145,0.3608,90337.0,90336.0,0.00016604]
[1765292243238,0.0110707,90330.0,90315.0,0.00110724]
[1765292243442,0.3608,90316.0,90315.0,0.00110724]
[1765292244042,0.3608,90316.0,90299.0,0.3608]
[1765292244246,0.0110733,90309.0,90302.0,0.00016604]
[1765292244443,0.0110735,90307.0,90302.0,0.00016604]
[1765292245058,0.011074,90303.0,90302.0,0.00016604]
[1765292245243,0.3608,90308.0,90279.0,0.36102154]
[1765292245244,0.0110763,90285.0,90279.0,0.00022154]
[1765292245445,0.3608,90280.0,90279.0,0.00022154]
[1765292245648,0.13379736,90289.0,90279.0,0.00022154]
[1765292246051,0.3608,90285.0,90279.0,0.00022154]
[1765292246751,0.3608,90285.0,90279.0,0.00222154]
[1765292246949,0.3608,90285.0,90279.0,0.01329844]
[1765292247460,0.3608,90285.0,90279.0,0.00222154]
[1765292247863,0.3608,90285.0,90284.0,0.0110763]
[1765292248058,0.00011979,90288.0,90279.0,0.00222154]
[1765292248249,0.00011979,90288.0,90285.0,0.0110761]
[1765292248455,0.00011979,90288.0,90287.0,0.011076]
[1765292248654,0.3608,90313.0,90312.0,0.0110729]
[1765292248964,0.3608,90313.0,90299.0,0.0110744]
[1765292248965,0.3608,90313.0,90299.0,0.3608]
[1765292249256,0.3608,90313.0,90311.0,0.0110729]
[1765292249554,0.3608,90313.0,90303.0,0.00016615]
[1765292249764,0.3608,90313.0,90305.0,0.0110737]
[1765292249951,0.3688,90313.0,90312.0,0.001]
[1765292250459,0.3618,90313.0,90303.0,0.00016615]
[1765292250651,0.3668,90313.0,90308.0,0.0110733]
[1765292250851,0.3668,90313.0,90305.0,0.0110737]
[1765292251155,0.3668,90313.0,90303.0,0.00016615]
[1765292251551,0.3658,90313.0,90303.0,0.01124015]
[1765292251763,0.3668,90313.0,90303.0,0.00016615]
[1765292252660,0.3648,90313.0,90303.0,0.00016615]
[1765292252851,0.3648,90313.0,90304.0,0.0110739]
[1765292253252,0.3648,90313.0,90303.0,0.00016615]
[1765292253658,0.3648,90313.0,90306.0,0.0110735]
[1765292254051,0.3648,90313.0,90303.0,0.00016615]
[1765292254256,0.3648,90313.0,90310.0,0.011073]
[1765292255964,0.3618,90313.0,90310.0,0.011073]
[1765292256160,0.3658,90313.0,90303.0,0.00016615]
[1765292256469,0.49959736,90313.0,90304.0,0.0110739]
[1765292256656,0.50059736,90313.0,90304.0,0.0110739]
[1765292257660,0.50059736,90313.0,90307.0,0.0110734]
[1765292257963,0.49959736,90313.0,90307.0,0.0110734]
[1765292258263,0.50059736,90313.0,90307.0,0.0110734]
[1765292258664,0.49559736,90313.0,90309.0,0.0110732]
[1765292258866,0.3648,90313.0,90309.0,0.0110732]
[1765292259252,0.3618,90313.0,90309.0,0.0110732]
[1765292259454,0.3648,90313.0,90303.0,0.00016615]
[1765292259662,0.0110733,90309.0,90303.0,0.00016615]
[1765292260259,0.0110732,90310.0,90303.0,0.00016615]
[1765292260863,0.50967026,90313.0,90303.0,0.01124015]
[1765292261064,0.49859736,90313.0,90305.0,0.0110737]
[1765292261367,0.49859736,90313.0,90303.0,0.00016615]
[1765292261768,0.3648,90313.0,90303.0,0.00016615]
[1765292262069,0.3618,90313.0,90309.0,0.0110732]
[1765292262265,0.3608,90313.0,90309.0,0.0110732]
[1765292262467,0.001,90313.0,90311.0,0.011073]
[1765292262764,0.004,90313.0,90311.0,0.011073]
[1765292263373,0.006,90313.0,90311.0,0.011073]
[1765292264467,0.0110732,90310.0,90303.0,0.00016615]
[1765292264659,0.3608,90312.0,90303.0,0.00016615]
[1765292264859,0.0110737,90306.0,90303.0,0.00016615]
[1765292265459,0.3608,90304.0,90303.0,0.00016615]
[1765292266856,0.3638,90304.0,90303.0,0.00016615]
[1765292268370,0.3648,90304.0,90303.0,0.00016615]
[1765292270768,0.3648,90304.0,90280.0,0.3608]
[1765292270973,0.13379736,90290.0,90285.0,0.0110762]
[1765292271374,0.13379736,90290.0,90282.0,0.0110765]
[1765292271676,0.13379736,90290.0,90287.0,0.0110759]
[1765292271879,0.13379736,90290.0,90280.0,0.3648]
[1765292272377,0.0110759,90288.0,90282.0,0.002]
[1765292272579,0.3608,90285.0,90282.0,0.002]
[1765292272963,0.3608,90285.0,90280.0,0.004]
[1765292273463,0.3608,90285.0,90280.0,0.002]
[1765292273671,0.3608,90285.0,90282.0,0.002]
[1765292274281,0.3608,90285.0,90283.0,0.0110765]
[1765292275073,0.3608,90293.0,90280.0,0.001]
[1765292275272,0.3608,90293.0,90282.0,0.001]
[1765292275471,0.3608,90293.0,90285.0,0.0110762]
[1765292275677,0.05941177,90295.0,90282.0,0.001]
[1765292275879,0.05941177,90295.0,90290.0,0.0110755]
[1765292276184,0.05941177,90296.0,90289.0,0.0110756]
[1765292276676,0.05941177,90296.0,90288.0,0.0110758]
[1765292276874,0.07048657,90297.0,90288.0,0.0110758]
[1765292277273,0.05941177,90296.0,90288.0,0.0110758]
[1765292277474,0.05941177,90296.0,90284.0,0.0110762]
[1765292277475,0.011075,90295.0,90284.0,0.0110762]
[1765292277679,0.011075,90295.0,90280.0,0.3618]
[1765292277680,0.3608,90291.0,90280.0,0.3618]
[1765292278372,0.3608,90291.0,90288.0,0.0110758]
[1765292278974,0.3608,90291.0,90287.0,0.0110759]
[1765292279170,0.3608,90291.0,90280.0,0.3608]
[1765292279369,0.0110756,90290.0,90283.0,0.0110764]
[1765292279573,0.0110756,90290.0,90280.0,0.3618]
[1765292279574,0.0110765,90283.0,90280.0,0.001]
[1765292279782,0.3608,90281.0,90280.0,0.001]
[1765292280378,0.0110768,90280.0,90279.0,0.00038769]
[1765292280571,0.0110771,90278.0,90261.0,0.3608]
[1765292280778,0.0110773,90276.0,90261.0,0.3608]
[1765292280986,0.19646217,90271.0,90261.0,0.3608]
[1765292281186,0.3608,90269.0,90261.0,0.0110791]
[1765292281488,0.3608,90269.0,90258.0,0.3608]
[1765292281672,0.3608,90269.0,90262.0,0.011079]
[1765292281878,0.3608,90269.0,90264.0,0.0110788]
[1765292282685,0.3608,90269.0,90266.0,0.0110785]
[1765292282881,0.00016615,90273.0,90272.0,0.0110778]
[1765292284087,0.00016615,90273.0,90272.0,0.0130778]
[1765292284286,0.00016615,90273.0,90272.0,0.002]
[1765292284484,0.36096615,90273.0,90272.0,0.002]
[1765292284680,0.36096615,90273.0,90272.0,0.005]
[1765292285889,0.19646217,90270.0,90262.0,0.011079]
[1765292286087,0.19646217,90270.0,90264.0,0.0110787]
[1765292286289,0.19646217,90270.0,90266.0,0.0110785]
[1765292286478,0.36096615,90273.0,90272.0,0.0110778]
[1765292286988,0.00016615,90273.0,90272.0,0.3718778]
[1765292287179,0.01111937,90305.0,90302.0,0.0110741]
[1765292287672,0.55726217,90312.0,90289.0,0.3608]
[1765292287872,0.19646217,90300.0,90297.0,0.0110746]
[1765292288386,0.19646217,90300.0,90289.0,0.36096615]
[1765292288583,0.3608,90304.0,90289.0,0.36096615]
[1765292288782,0.3608,90304.0,90290.0,0.0110756]
[1765292288979,0.005,90305.0,90290.0,0.0110756]
[1765292289385,0.005,90305.0,90303.0,0.0110739]
[1765292290382,0.00016615,90308.0,90307.0,0.0110735]
[1765292290781,0.00016615,90308.0,90297.0,0.3608]
[1765292291089,0.007,90305.0,90297.0,0.3608]
[1765292291588,0.002,90305.0,90302.0,0.011074]
[1765292291980,0.002,90305.0,90297.0,0.3608]
[1765292292178,0.3608,90301.0,90296.0,0.0110748]
[1765292292486,0.3608,90301.0,90292.0,0.0110753]
[1765292292792,0.19646217,90300.0,90295.0,0.0110749]
[1765292292979,0.3608,90301.0,90295.0,0.0110749]
[1765292293588,0.3608,90301.0,90297.0,0.0110746]
[1765292294001,0.3608,90301.0,90289.0,0.36096615]
[1765292294489,0.19646217,90300.0,90289.0,0.36096615]
[1765292294879,0.3608,90291.0,90289.0,0.00016615]
[1765292295890,0.3608,90291.0,90289.0,0.01124175]
[1765292296185,0.19646217,90300.0,90289.0,0.01124175]
[1765292296186,0.3718746,90299.0,90292.0,0.0110753]
[1765292296589,0.004,90301.0,90300.0,0.0110744]
[1765292296590,0.001,90301.0,90300.0,0.0110744]
[1765292296784,0.002,90300.0,90299.0,0.0110745]
[1765292297285,0.3608,90309.0,90307.0,0.0110735]
[1765292297790,0.3608,90309.0,90306.0,0.0110736]
[1765292298482,0.00616615,90308.0,90307.0,0.001]
[1765292299486,0.00816615,90308.0,90307.0,0.3618]
[1765292299877,0.00216615,90308.0,90307.0,0.3608]
[1765292300189,0.00816615,90308.0,90307.0,0.3608]
[1765292300682,0.00816615,90308.0,90307.0,0.3618]
[1765292302886,0.3608,90329.0,90307.0,0.3618]
[1765292303086,0.3608,90329.0,90328.0,0.0110709]
[1765292303292,0.3718708,90329.0,90323.0,0.0110715]
[1765292303492,0.3718708,90329.0,90325.0,0.0110712]
[1765292303693,0.3608,90329.0,90325.0,0.0110712]
[1765292304780,0.3718,90329.0,90328.0,0.001]
[1765292304981,0.3738,90329.0,90328.0,0.001]
[1765292306380,0.3738,90329.0,90318.0,0.01123825]
[1765292306381,0.3688,90329.0,90325.0,0.001]
[1765292306675,0.3708,90329.0,90325.0,0.001]
[1765292306878,0.0110709,90328.0,90318.0,0.00016615]
[1765292307087,0.3818708,90329.0,90328.0,0.001]
[1765292307284,0.7426708,90329.0,90328.0,0.001]
[1765292307491,0.0110718,90322.0,90318.0,0.00016615]
[1765292307792,0.3608,90319.0,90318.0,0.00016615]
[1765292309094,0.371872,90319.0,90318.0,0.00016615]
[1765292309294,0.0110735,90308.0,90293.0,0.3608]
[1765292309590,0.0110733,90309.0,90297.0,0.0110746]
[1765292309788,0.55726217,90310.0,90296.0,0.0110748]
[1765292309993,0.56833537,90310.0,90296.0,0.0110748]
[1765292310197,0.0110734,90308.0,90296.0,0.0110748]
[1765292311190,0.0110733,90309.0,90298.0,0.0110745]
[1765292311494,0.00016615,90312.0,90310.0,0.0110731]
[1765292312402,0.00016615,90312.0,90302.0,0.3608]
[1765292312403,0.3608,90311.0,90302.0,0.3608]
[1765292312689,0.3608,90311.0,90302.0,0.3718741]
[1765292312900,0.3608,90311.0,90308.0,0.0110734]
[1765292313896,0.3608,90311.0,90302.0,0.371874]
[1765292314193,0.3628,90311.0,90302.0,0.371874]
[1765292314496,0.3618,90311.0,90302.0,0.011074]
[1765292314698,0.3648,90311.0,90302.0,0.011074]
[1765292314888,0.3608,90303.0,90294.0,0.00016615]
[1765292315088,0.3608,90303.0,90294.0,0.01124115]
[1765292315495,0.3608,90303.0,90297.0,0.0110747]
[1765292316286,0.3608,90303.0,90301.0,0.0110742]
[1765292316501,0.3608,90303.0,90294.0,0.00016615]
[1765292316502,0.3608,90303.0,90300.0,0.0110743]
[1765292316697,0.3608,90303.0,90294.0,0.00016615]
[1765292316900,0.3608,90303.0,90295.0,0.011075]
[1765292317097,0.371874,90303.0,90294.0,0.01124125]
[1765292317292,0.371874,90303.0,90294.0,0.00016615]
[1765292317495,0.3618,90303.0,90297.0,0.0110747]
[1765292317794,0.3618,90303.0,90294.0,0.00016615]
[1765292318296,0.3608,90295.0,90294.0,0.00016615]
[1765292318500,0.3608,90295.0,90294.0,0.01124125]
[1765292319496,0.373875,90295.0,90294.0,0.00016615]
[1765292319893,0.3628,90295.0,90294.0,0.00016615]
[1765292320195,0.42221177,90295.0,90294.0,0.00016615]
[1765292320585,0.42121177,90295.0,90294.0,0.00016615]
[1765292320790,0.42221177,90295.0,90294.0,0.00016615]
[1765292321186,0.3628,90295.0,90294.0,0.00016615]
[1765292321386,0.42221177,90295.0,90294.0,0.00016615]
[1765292322291,0.002,90295.0,90294.0,0.00016615]
[1765292323205,0.001,90295.0,90294.0,0.00016615]
[1765292323699,0.3618,90295.0,90294.0,0.00016615]
[1765292323905,0.3608,90295.0,90294.0,0.00016615]
[1765292324901,0.42021177,90295.0,90294.0,0.00016615]
[1765292325498,0.3618,90295.0,90294.0,0.00016615]
[1765292325691,0.3628,90295.0,90294.0,0.00016615]
[1765292329110,0.373875,90295.0,90294.0,0.00016615]
[1765292329598,0.3628,90295.0,90294.0,0.00016615]
[1765292329903,0.002,90295.0,90294.0,0.36096615]
[1765292331204,0.001,90295.0,90294.0,0.36096615]
[1765292331710,0.3608,90303.0,90302.0,0.0110741]
[1765292332098,0.3608,90314.0,90309.0,0.0110732]
[1765292332309,0.0110728,90313.0,90309.0,0.0110732]
[1765292332699,0.3608,90314.0,90309.0,0.0110732]
[1765292333599,0.3608,90314.0,90302.0,0.3608]
[1765292333600,0.01123915,90312.0,90302.0,0.3608]
[1765292333800,0.01123915,90312.0,90308.0,0.0110734]
[1765292334004,0.01323915,90312.0,90308.0,0.0110734]
[1765292334402,0.00216615,90312.0,90308.0,0.0110734]
[1765292334608,0.00416615,90312.0,90302.0,0.3608]
[1765292334810,0.00516615,90312.0,90309.0,0.0110732]
[1765292335109,0.00116615,90312.0,90309.0,0.0110732]
[1765292335293,0.00416615,90312.0,90309.0,0.0110732]
[1765292335500,0.00416615,90312.0,90307.0,0.0110734]
[1765292335701,0.00316615,90312.0,90307.0,0.0110734]
[1765292336202,0.00216615,90312.0,90307.0,0.0110734]
[1765292336401,0.00616615,90312.0,90307.0,0.0110734]
[1765292336905,0.00416615,90312.0,90302.0,0.3608]
[1765292337105,0.00616615,90312.0,90302.0,0.3608]
[1765292337611,0.00616615,90312.0,90305.0,0.0110737]
[1765292337811,0.00516615,90312.0,90305.0,0.0110737]
[1765292338110,0.00516615,90312.0,90307.0,0.0110735]
[1765292338312,0.00216615,90312.0,90307.0,0.0110735]
[1765292338498,0.00416615,90312.0,90307.0,0.0110735]
[1765292338704,0.00416615,90312.0,90302.0,0.3608]
[1765292338902,0.00216615,90312.0,90302.0,0.3608]
[1765292339104,0.00516615,90312.0,90310.0,0.0110731]
[1765292339611,0.00416615,90312.0,90310.0,0.0110731]
[1765292340398,0.00516615,90312.0,90311.0,0.3608]
[1765292340714,0.00216615,90312.0,90311.0,0.3608]
[1765292340904,0.00516615,90312.0,90311.0,0.3608]
[1765292341408,0.00616615,90312.0,90311.0,0.3608]
[1765292348511,0.05941177,90334.0,90333.0,0.0110703]
[1765292348716,0.00110694,90340.0,90333.0,0.0110703]
[1765292348717,0.00110694,90340.0,90339.0,0.0110696]
[1765292350608,0.00210694,90340.0,90339.0,0.0110696]
[1765292351319,0.00310694,90340.0,90339.0,0.0110696]
[1765292351813,0.00310694,90340.0,90339.0,0.3718696]
[1765292352405,0.00016605,90349.0,90348.0,0.0110685]
[1765292354011,0.00216605,90349.0,90348.0,0.0110685]
[1765292355810,0.36296605,90349.0,90340.0,0.3608]
[1765292356115,0.36296605,90349.0,90335.0,0.01107]
[1765292356317,0.0110697,90338.0,90334.0,0.3608]
[1765292356623,0.3608,90341.0,90334.0,0.3608]
[1765292356624,0.0110699,90337.0,90334.0,0.3608]
[1765292356918,0.0110696,90339.0,90333.0,0.0110702]
[1765292357319,0.3608,90341.0,90330.0,0.00016605]
[1765292357822,0.3608,90341.0,90335.0,0.01107]
[1765292360020,0.3608,90341.0,90330.0,0.13601446]
[1765292360320,0.00016605,90349.0,90347.0,0.0110685]
[1765292360617,0.00016605,90349.0,90348.0,0.3608]
[1765292361529,0.00116605,90349.0,90348.0,0.3608]
[1765292361822,5e-08,90349.0,90348.0,0.3608]
[1765292362225,0.00022154,90369.0,90348.0,0.3608]
[1765292362417,0.00022154,90369.0,90364.0,0.3608]
[1765292362718,0.00022154,90369.0,90364.0,0.3718665]
[1765292363822,0.00210663,90365.0,90364.0,0.3718665]
[1765292365819,0.00210663,90365.0,90364.0,0.7326665]
[1765292366214,0.00022154,90369.0,90368.0,0.011066]
[1765292367420,0.00122154,90369.0,90368.0,0.011066]
[1765292368519,5.544e-05,90369.0,90368.0,0.011066]
[1765292368715,0.00016605,90374.0,90373.0,0.0110654]
[1765292368920,0.3608,90402.0,90401.0,0.011062]
[1765292370014,0.3608,90402.0,90401.0,0.014062]
[1765292370217,0.3608,90402.0,90401.0,0.003]
[1765292370628,0.3608,90402.0,90401.0,0.006]
[1765292372116,0.3608,90402.0,90401.0,0.008]
[1765292380631,0.3608,90403.0,90401.0,0.008]
[1765292381129,0.00016496,90411.0,90401.0,0.008]
[1765292382121,0.00016496,90411.0,90407.0,0.3608]
[1765292382729,0.00216496,90411.0,90407.0,0.3608]
[1765292383328,0.00316496,90411.0,90407.0,0.3608]
[1765292383530,0.00316496,90411.0,90399.0,0.3608]
[1765292385128,0.00416496,90411.0,90399.0,0.3608]
[1765292388734,0.00416496,90411.0,90398.0,0.3608]
[1765292391133,0.00016496,90411.0,90398.0,0.3608]
[1765292391333,0.00416496,90411.0,90398.0,0.3608]
[1765292391840,0.00416496,90411.0,90400.0,0.13384841]
[1765292392743,0.00416496,90411.0,90406.0,0.3608]
[1765292394335,0.00516496,90411.0,90406.0,0.3608]
[1765292394736,0.00016496,90411.0,90406.0,0.3608]
[1765292394944,0.00616496,90411.0,90406.0,0.3608]
[1765292398336,0.00016496,90411.0,90406.0,0.3608]
[1765292398644,0.00416496,90411.0,90406.0,0.3608]
[1765292400644,0.00193886,90411.0,90406.0,0.3608]
[1765292400837,0.00193886,90411.0,90410.0,0.3608]
[1765292401346,0.3608,90411.0,90403.0,0.02435106]
[1765292401543,0.3608,90404.0,90381.0,0.03452149]
[1765292401735,0.3608,90409.0,90386.0,0.3608]
[1765292401936,0.3608,90393.0,90376.0,0.3608]
[1765292402136,0.3608,90393.0,90367.0,0.00010882]
[1765292402137,0.1958622,90390.0,90369.0,0.3608]
[1765292402337,0.3608,90370.0,90367.0,0.00010882]
[1765292403236,0.3608,90370.0,90359.0,0.00016595]
[1765292403237,0.3608,90368.0,90359.0,0.00016595]
[1765292403446,0.3608,90360.0,90342.0,0.3608]
[1765292403647,0.3608,90349.0,90342.0,0.3608]
[1765292403948,0.05941307,90362.0,90342.0,0.3608]
[1765292404140,0.00012332,90361.0,90351.0,0.3608]
[1765292404338,0.00012332,90361.0,90360.0,0.3608]
[1765292405235,0.00016595,90370.0,90360.0,0.3608]
[1765292405644,0.00016595,90370.0,90360.0,0.3648]
[1765292405943,0.00016595,90370.0,90368.0,0.3608]
[1765292406639,0.00016595,90370.0,90360.0,0.005]
[1765292406842,0.3608,90365.0,90360.0,0.005]
[1765292407340,0.3608,90365.0,90360.0,0.004]
[1765292407650,0.3608,90365.0,90351.0,0.00016595]
[1765292408545,0.1958622,90361.0,90360.0,0.003]
[1765292408745,0.3608,90365.0,90360.0,0.003]
[1765292409839,0.3608,90365.0,90351.0,0.00016595]
[1765292410040,0.3608,90356.0,90351.0,0.00416595]
[1765292410237,0.3608,90356.0,90351.0,0.00516595]
[1765292410436,0.3608,90354.0,90351.0,0.00116595]
[1765292411150,0.3608,90354.0,90351.0,0.00516595]
[1765292411449,0.3608,90368.0,90351.0,0.00516595]
[1765292411646,0.3608,90360.0,90351.0,0.00516595]
[1765292411846,0.19602815,90370.0,90351.0,0.00516595]
[1765292412052,0.36096595,90370.0,90356.0,0.3608]
[1765292412641,0.55682815,90370.0,90356.0,0.3608]
[1765292413141,0.36096595,90370.0,90356.0,0.3608]
[1765292413746,0.36096595,90370.0,90356.0,0.3638]
[1765292414348,0.36096595,90370.0,90356.0,0.3648]
[1765292415044,0.55682815,90370.0,90356.0,0.3648]
[1765292415247,0.3608,90362.0,90356.0,0.004]
[1765292416447,0.3608,90362.0,90356.0,0.001]
[1765292416648,0.3608,90362.0,90356.0,0.004]
[1765292417143,0.3608,90362.0,90356.0,0.003]
[1765292417346,0.3608,90362.0,90356.0,0.004]
[1765292417852,0.36096595,90370.0,90356.0,0.004]
[1765292418050,0.55682815,90370.0,90356.0,0.004]
[1765292418751,0.3608,90357.0,90356.0,0.004]
[1765292419252,0.3608,90357.0,90356.0,0.001]
[1765292419450,0.3608,90357.0,90356.0,0.004]
[1765292419839,0.3608,90357.0,90356.0,0.001]
[1765292420041,0.3608,90357.0,90356.0,0.004]
[1765292422548,0.3608,90357.0,90351.0,0.00016595]
[1765292423057,0.3608,90357.0,90356.0,0.003]
[1765292423558,0.3608,90357.0,90351.0,0.00016595]
[1765292423857,0.3608,90357.0,90351.0,0.00416595]
[1765292424057,0.3608,90357.0,90351.0,0.00516595]
[1765292424255,0.3608,90357.0,90356.0,0.003]
[1765292424446,0.00016595,90370.0,90356.0,0.3638]
[1765292424842,0.00016595,90370.0,90366.0,0.3608]
[1765292426460,0.00216595,90370.0,90366.0,0.3608]
[1765292426950,0.00116595,90370.0,90366.0,0.3608]
[1765292428148,0.00116595,90370.0,90356.0,0.3608]
[1765292428952,0.19602815,90370.0,90356.0,0.3608]
[1765292429552,0.00016595,90370.0,90356.0,0.3608]
[1765292429861,0.19602815,90370.0,90356.0,0.3628]
[1765292430359,0.19602815,90370.0,90356.0,0.3638]
[1765292431656,0.00016595,90370.0,90364.0,0.3608]
[1765292433064,0.00016595,90370.0,90358.0,0.3608]
[1765292433452,0.011067,90360.0,90358.0,0.3608]
[1765292433755,0.00016595,90370.0,90358.0,0.3608]
[1765292434152,0.00016595,90370.0,90368.0,0.3608]
[1765292434348,0.00016595,90370.0,90368.0,0.371866]
[1765292434761,0.3608,90382.0,90379.0,0.0110646]
[1765292434966,0.05941307,90387.0,90382.0,0.0110642]
[1765292435159,0.05941307,90388.0,90382.0,0.0110642]
[1765292435366,0.05941307,90389.0,90383.0,0.0110642]
[1765292435660,0.0110639,90386.0,90379.0,0.0110646]
[1765292435855,0.07047657,90389.0,90377.0,0.36096595]
[1765292436356,0.0110635,90389.0,90377.0,0.36096595]
[1765292436661,0.0110638,90387.0,90380.0,0.0110645]
[1765292436864,0.3608,90391.0,90377.0,0.36096595]
[1765292437055,0.42021307,90391.0,90385.0,0.0110639]
[1765292437360,0.05941307,90402.0,90390.0,0.3608]
[1765292437561,0.05941307,90412.0,90401.0,0.3608]
[1765292437754,0.05941307,90412.0,90402.0,0.0110619]
[1765292437954,0.0110611,90408.0,90401.0,0.3608]
[1765292438257,0.1958622,90411.0,90401.0,0.3608]
[1765292438451,0.06051909,90415.0,90401.0,0.3608]
[1765292438452,0.0110613,90407.0,90401.0,0.3608]
[1765292438859,0.0110613,90407.0,90397.0,0.00016595]
[1765292438860,0.0110624,90398.0,90397.0,0.00016595]
[1765292439664,0.42021307,90405.0,90397.0,0.00016595]
[1765292439968,0.0110622,90400.0,90397.0,0.00016595]
[1765292441167,0.05941307,90403.0,90400.0,0.011062]
[1765292441470,0.42021307,90411.0,90399.0,0.3608]
[1765292441760,0.3608,90411.0,90408.0,0.011061]
[1765292441970,0.3608,90411.0,90399.0,0.3608]
[1765292442359,0.3608,90411.0,90408.0,0.0110611]
[1765292442766,0.00110602,90415.0,90411.0,0.0110608]
[1765292443064,0.00110602,90415.0,90400.0,0.3608]
[1765292443364,0.3608,90413.0,90404.0,0.0110616]
[1765292443757,0.3608,90413.0,90400.0,0.3608]
[1765292443958,0.001,90411.0,90405.0,0.0110615]
[1765292444569,0.001,90411.0,90400.0,0.3608]
[1765292444570,0.3628,90413.0,90400.0,0.3608]
[1765292444967,0.3628,90413.0,90404.0,0.0110615]
[1765292445271,0.002,90411.0,90408.0,0.011061]
[1765292445870,0.3618,90413.0,90408.0,0.011061]
[1765292446166,0.3618,90413.0,90400.0,0.3608]
[1765292446363,0.1958622,90410.0,90400.0,0.3608]
[1765292446760,0.3618,90413.0,90412.0,0.0110607]
[1765292447073,0.3618,90413.0,90407.0,0.0110612]
[1765292447267,0.3608,90413.0,90410.0,0.0110609]
[1765292447469,0.00110602,90415.0,90410.0,0.0110609]
[1765292447470,0.003,90411.0,90410.0,0.0110609]
[1765292447658,0.00110602,90415.0,90414.0,0.0110604]
[1765292447970,0.42021307,90433.0,90431.0,0.0110582]
[1765292447971,0.3608,90433.0,90431.0,0.0110582]
[1765292448171,0.3608,90433.0,90428.0,0.0110586]
[1765292448375,0.3608,90433.0,90430.0,0.0110584]
[1765292448757,0.05941307,90441.0,90440.0,0.0110572]
[1765292448758,0.3608,90441.0,90440.0,0.0110572]
[1765292449267,0.3608,90441.0,90437.0,0.0110576]
[1765292449470,0.3608,90441.0,90439.0,0.0110573]
[1765292449669,0.3608,90451.0,90450.0,0.011056]
[1765292450168,0.2069171,90460.0,90450.0,0.011056]
[1765292450367,0.3608,90461.0,90441.0,0.00016585]
[1765292450368,0.3608,90461.0,90443.0,0.0110567]
[1765292450574,0.00110541,90465.0,90450.0,0.5566622]
[1765292450876,0.00110541,90465.0,90462.0,0.0110545]
[1765292451977,0.00110541,90465.0,90462.0,0.0130545]
[1765292452172,0.00110541,90465.0,90462.0,0.0180545]
[1765292453679,0.00110541,90465.0,90462.0,0.0110545]
[1765292453680,0.00410541,90465.0,90462.0,0.0110545]
[1765292455875,0.00410541,90465.0,90459.0,0.7216]
[1765292456067,0.36490541,90465.0,90459.0,0.3608]
[1765292456872,0.36490541,90465.0,90450.0,0.011056]
[1765292457073,0.36490541,90465.0,90449.0,0.3608]
[1765292457276,0.36190541,90465.0,90449.0,0.3608]
[1765292457466,0.36190541,90465.0,90456.0,0.0110552]
[1765292457667,0.36190541,90465.0,90457.0,0.3608]
[1765292458177,0.36190541,90465.0,90452.0,0.0110557]
[1765292458479,0.36190541,90465.0,90446.0,0.3608]
[1765292458480,0.13340469,90462.0,90454.0,0.0110554]
[1765292458662,0.13340469,90462.0,90453.0,0.0110556]
[1765292459067,0.13340469,90462.0,90446.0,0.3608]
[1765292459280,0.13340469,90462.0,90456.0,0.0110552]
[1765292459681,0.13340469,90462.0,90446.0,0.3608]
[1765292459872,0.13340469,90462.0,90454.0,0.0110554]
[1765292460066,0.13340469,90462.0,90456.0,0.0110552]
[1765292460377,0.36190541,90465.0,90462.0,0.0110545]
[1765292460567,0.36190541,90465.0,90446.0,0.3608]
[1765292460981,0.00110541,90465.0,90461.0,0.0110546]
[1765292461167,0.00110541,90465.0,90464.0,0.3608]
[1765292461365,0.00110541,90465.0,90461.0,0.0110546]
[1765292461878,0.00110541,90465.0,90464.0,0.3608]
[1765292462064,0.00110541,90465.0,90462.0,0.0110544]
[1765292462065,0.00110541,90465.0,90458.0,0.011055]
[1765292462269,0.0110569,90443.0,90441.0,0.00016585]
[1765292462485,0.13340469,90451.0,90441.0,0.00016585]
[1765292462672,0.00110541,90465.0,90441.0,0.00016585]
[1765292462874,0.13340469,90460.0,90441.0,0.00016585]
[1765292463068,0.0110564,90447.0,90441.0,0.00016585]
[1765292463380,0.13340469,90451.0,90422.0,0.0110594]
[1765292463676,0.13340469,90432.0,90413.0,0.02944]
[1765292463878,0.0110583,90431.0,90418.0,0.0110599]
[1765292464080,0.13340469,90428.0,90418.0,0.0110598]
[1765292464380,0.13340469,90430.0,90420.0,0.0110596]
[1765292464564,0.00016553,90432.0,90420.0,0.0110596]
[1765292464769,0.13340469,90430.0,90414.0,0.00016585]
[1765292464973,0.13340469,90424.0,90414.0,0.00016585]
[1765292465178,0.0110593,90423.0,90414.0,0.00016585]
[1765292465593,0.13340469,90424.0,90414.0,0.00016585]
[1765292465781,0.0110593,90423.0,90414.0,0.00016585]
[1765292465983,0.13340469,90424.0,90414.0,0.00016585]
[1765292466183,0.00016553,90432.0,90414.0,0.00016585]
[1765292466378,0.00016553,90432.0,90415.0,0.0110602]
[1765292466578,0.13340469,90430.0,90418.0,0.001]
[1765292467092,0.13340469,90430.0,90414.0,0.00116585]
[1765292467093,0.00016553,90432.0,90431.0,0.0110583]
[1765292467492,0.13340469,90460.0,90455.0,0.0110553]
[1765292467804,0.00110541,90465.0,90458.0,0.011055]
[1765292467805,0.1345101,90465.0,90458.0,0.011055]
[1765292467983,0.00110541,90465.0,90440.0,0.13340469]
[1765292468179,0.00110541,90465.0,90461.0,0.0110546]
[1765292468385,0.00110541,90465.0,90464.0,0.0110543]
[1765292469385,0.00110541,90465.0,90462.0,0.0110545]
[1765292469893,0.00110541,90465.0,90459.0,0.0110549]
[1765292470090,0.00110541,90465.0,90454.0,0.00016585]
[1765292470295,0.00110541,90465.0,90464.0,0.0110543]
[1765292470792,0.00110541,90465.0,90454.0,0.00016585]
[1765292470990,0.00110541,90465.0,90460.0,0.0110548]